Cogmind - Beta 17.1 @@@ ROGUE MODE // 2026.09.05 @ 17:07:56 Player: LandRaider Result: Destroyed by D-53 Grenadier with Mini Grenade Launcher Performance ------------- Evolutions (0) 0 Regions Visited (2) 400 Robots Destroyed (25) 125 Value Destroyed (391) 391 Prototype IDs (2) 40 Alien Tech Used (0) 0 Bonus (0) 0 TOTAL SCORE: 956 Bonus ------- None Cogmind --------- Core Integrity 0/250 Matter 275/300 Energy 38/100 System Corruption 0% Temperature Cool (2) Movement Flying (32) Location -10/Mines Parts ------- > --- POWER (1) -------- (None) > --- PROPULSION (2) --- VTOL Module VTOL Module > --- UTILITY (2) ------ Small Storage Unit > --- WEAPON (2) ------- Light Cannon > --- INVENTORY (8) ---- Ion Engine VTOL Module VTOL Module VTOL Module VTOL Module Improved Heat Sink Grenade Launcher Hammer Peak State ------------ > --- POWER ------------ (None) > --- PROPULSION ------- VTOL Module VTOL Module > --- UTILITY ---------- Small Storage Unit High-capacity Storage Unit > --- WEAPON ----------- Particle Cannon Light Cannon > --- INVENTORY -------- Ion Engine VTOL Module VTOL Module VTOL Module VTOL Module VTOL Module Improved Heat Sink High-capacity Matter Pod Machine Analyzer Signal Interpreter Improved Terrain Scanner Spread Laser Particle Cannon Light Cannon Light Cannon Grenade Launcher Hammer [Rating: 12] Favorites ----------- Power Light Ion Engine Engine Light Ion Engine Propulsion Light Treads Treads Light Treads Leg Aluminum Leg Flight Unit VTOL Module Utility Seismic Detector Device Seismic Detector Storage High-capacity Storage Unit Weapon Assault Rifle Energy Gun Medium Laser Energy Cannon Particle Cannon Ballistic Gun Assault Rifle Ballistic Cannon Light Cannon Build | -11 -10 -10 ------- Run | Yrd Mat Min Slots Evolved . | . . . Power . | . . . Propulsion . | . . . Utility . | . . . Weapon . | . . . Parts Attached 21 | 9 9 3 Power 4 | 1 3 . Engine 4 | 1 3 . Core . | . . . Reactor . | . . . Propulsion 6 | 3 1 2 Treads 3 | 2 1 . Leg 1 | 1 . . Wheel . | . . . Hover . | . . . Flight 2 | . . 2 Utility 5 | 2 2 1 Device 1 | 1 . . Storage 4 | 1 2 1 Processor . | . . . Hackware . | . . . Protection . | . . . Artifact . | . . . Weapon 6 | 3 3 . Energy Gun 2 | 2 . . Energy Cannon 1 | . 1 . Ballistic Gun 2 | 1 1 . Ballistic Cannon 1 | . 1 . Launcher . | . . . Special Weapon . | . . . Impact Weapon . | . . . Slashing Weapon . | . . . Piercing Weapon . | . . . Special Melee Weapon . | . . . Unidentified Prototypes . | . . . Parts Lost 5 | . 1 4 Power 1 | . . 1 Propulsion 2 | . . 2 Utility 1 | . . 1 Weapon 1 | . 1 . Highest Loss Streak 4 | . 1 4 To Critical Strikes . | . . . Average Backups 14 | 3 13 20 Power 1 | . 1 1 Propulsion 3 | 1 2 7 Utility 4 | . 4 6 Weapon 4 | . 4 6 Tool/Special . | . . . Unused Backups 19 | . 6 13 Power 1 | . 1 . Propulsion 3 | . 1 2 Utility 6 | . 1 5 Weapon 9 | . 3 6 Tool/Special . | . . . Average Slot Usage (%) 99 | . 99 99 Engine 13 | . 14 13 Treads 27 | . 28 27 Device 13 | . 14 13 Storage 14 | . 14 14 Energy Gun 3 | . 4 . Energy Cannon 5 | . . 13 Ballistic Gun 14 | . 21 . Ballistic Cannon 5 | . . 14 Peak Build Rating 12 | 7 11 12 Average Rating 9 | 5 8 10 On Entrance 6 | . 7 11 Avg Prop Armor Cover (%) 12 | 12 . . Naked Turns . | . . . Heaviest Build 51 | 13 51 51 Greatest Support 40 | 40 40 40 Greatest Overweight (x) 2 | . 1 2 Average Overweight (x) . | . . . Largest Inventory Capacity 20 | 8 20 20 Average Capacity 15 | 7 14 19 Most Carried 20 | 5 20 20 Average Carried 14 | 3 13 19 Final Capacity 20 | 8 20 8 Final Carried 20 | 5 20 8 Class Distribution -------------------- 95% | Mutant 4% | Scavenger-Mutant Dominant Class ---------------- Mutant | -10/Materials Mutant | -10/Mines Resources | -11 -10 -10 ----------- Run | Yrd Mat Min Matter Collected 803 | 323 440 40 Remotely . | . . . Salvage Created 894 | 189 705 . Parts 61 | 18 43 . Haulers Intercepted 2 | . 2 . Recyclers Shooed 3 | . 3 . Parts Field Recycled . | . . . Retrieved Matter . | . . . Parts Self-Destructed . | . . . Prevented . | . . . Parts Restored . | . . . Kills | -11 -10 -10 ------- Run | Yrd Mat Min Combat Hostiles Destroyed 12 | . 12 . Guns 12 | . 12 . Classes Destroyed 8 | 3 5 . Worker 2 | 2 . . Tunneler 3 | 3 . . Hauler 2 | . 2 . Recycler 3 | 1 2 . Mechanic 1 | . 1 . Watcher 2 | . 2 . Swarmer 5 | . 5 . Grunt 7 | . 7 . Best Kill Streak 5 | 4 5 . Combat Bots Only 5 | . 5 . Max Kills in Single Turn 2 | 1 2 . Gunslinging 1 | . 1 . Exploded . | . . . Melee . | . . . Uniques/NPCs Destroyed . | . . . Combat | -11 -10 -10 -------- Run | Yrd Mat Min Hostile Shots Fired 69 | . 58 11 Missed 24 | . 23 1 Hits 45 | . 35 10 Projectile 45 | . 35 10 AOE 17 | . 1 16 Critical Strikes 1 | . 1 . Damage Taken 1012 | . 471 541 Core 259 | . 96 163 Absorbed by Shields . | . . . Core Remaining (%) 100 | 100 . . Volleys Fired 67 | 11 56 . Largest 2 | 2 2 . Hottest 70 | 70 70 . Shots Fired 125 | 22 103 . Gun 125 | 22 103 . Cannon . | . . . Launcher . | . . . Special . | . . . Kinetic 94 | 11 83 . Thermal 31 | 11 20 . Explosive . | . . . Electromagnetic . | . . . Robot Hit Streak 12 | 2 12 . Robot Miss Streak 5 | 3 5 . Penetration Max . | . . . Secondary Targets 2 | . 2 . Max Gunslinging Chain 1 | . 1 . Shots Hit Robots 80 | 11 69 . Core Hits 41 | 7 34 . Critical Kills . | . . . Critical Parts Destroyed . | . . . Critical Strikes . | . . . Melee Attacks . | . . . Impact . | . . . Slashing . | . . . Piercing . | . . . Sneak Attacks . | . . . Combat Hostiles . | . . . Follow-up Attacks . | . . . Damage Inflicted 930 | 133 797 . Guns 930 | 133 797 . Cannons . | . . . Explosions . | . . . Melee . | . . . Ramming . | . . . Kinetic 744 | 85 659 . Thermal 186 | 48 138 . Explosive . | . . . Electromagnetic . | . . . Impact . | . . . Slashing . | . . . Piercing . | . . . Highest Corruption . | . . . Average Corruption . | . . . Corruption Purged . | . . . Corruption Blocked . | . . . Overload Shots . | . . . Overflow Damage . | . . . Projectiles . | . . . Explosions . | . . . Melee . | . . . Knockbacks . | . . . Impact . | . . . Kinetic . | . . . Secondary . | . . . Self-Inflicted Damage . | . . . Shots . | . . . Rammed . | . . . Targets Rammed . | . . . Kicked . | . . . Crushed . | . . . Highest Temperature 91 | 45 91 . Average Temperature 21 | 21 22 . Received Heat Transfer 192 | . 192 . Siege Activations . | . . . Martial Activations . | . . . Shielding Activations . | . . . Robots Disrupted . | . . . Combat Hostiles . | . . . Robots Corrupted . | . . . Combat Hostiles . | . . . Parts Fried . | . . . Impact Corruptions . | . . . Robots Melted . | . . . Combat Hostiles . | . . . Parts Melted 2 | . 2 . Heat Transferred 555 | 148 407 . Parts Sabotaged . | . . . Parts Stolen . | . . . Parts Stripped . | . . . Power Chain Reactions . | . . . Alert | -11 -10 -10 ------- Run | Yrd Mat Min Maximum Alert Level . | . . . Low Security (%) 100 | 100 100 100 Level 1 . | . . . Level 2 . | . . . Level 3 . | . . . Level 4 . | . . . Level 5 . | . . . High Security . | . . . Max Security . | . . . Peak Influence 135 | 10 135 . Initial 6 | . 6 . Average 28 | 3 45 . Influence Increases 401 | 30 371 . Destroy 0b10 Robot/C 240 | . 240 . Destroy 0b10 Robot/NC 65 | 30 35 . Destroy Leader 58 | . 58 . Successful Hack 8 | . 8 . Select Force Hacks 30 | . 30 . Influence Decreases 401 | 20 381 . Entered New Map 4 | . 4 . Time Decay 387 | 20 367 . Lost Part 10 | . 10 . Squads Dispatched 2 | . 2 . Investigation 1 | . 1 . Extermination . | . . . Reinforcement 1 | . 1 . Assault . | . . . Garrison . | . . . Intercept . | . . . Searches Triggered . | . . . Construction Impeded . | . . . Haulers Reinforced . | . . . Active Scanning Responses . | . . . Cargo Convoy Interrupts . | . . . Stealth | -11 -10 -10 --------- Run | Yrd Mat Min Distress Signals 1 | . 1 . Communications Jammed . | . . . Distress Signals . | . . . Times Spotted 27 | . 23 4 Peak Tracking Total 6 | . 6 2 Tactical Retreats . | . . . Traps | -11 -10 -10 ------- Run | Yrd Mat Min Traps Triggered 1 | . 1 . Indirectly . | . . . Trap Hack Attempts . | . . . Triggered . | . . . Disarmed . | . . . Reprogrammed . | . . . Reused . | . . . Traps Extracted . | . . . Installed . | . . . Triggered . | . . . Machines | -11 -10 -10 ---------- Run | Yrd Mat Min Machines Disabled . | . . . Max in Single Turn . | . . . Machines Repaired . | . . . Machines Dismantled . | . . . Machines Sabotaged . | . . . Overloaded Fab Kills . | . . . Hacking | -11 -10 -10 --------- Run | Yrd Mat Min Machines Accessed 6 | . 6 . Terminals 4 | . 4 . Fabricators . | . . . Repair Stations . | . . . Recycling Units 2 | . 2 . Scanalyzers . | . . . Garrison Access . | . . . Total Hacks 19 | . 19 . Successful 11 | . 11 . Failed 8 | . 8 . Catastrophic . | . . . Database Lockouts . | . . . Manual 5 | . 5 . Terminals 15 | . 15 . Fabricators . | . . . Repair Stations . | . . . Recycling Units 4 | . 4 . Scanalyzers . | . . . Garrison Access . | . . . Terminal Hacks 7 | . 7 . Record 3 | . 3 . Prototype ID Bank 1 | . 1 . Locate Traps 2 | . 2 . Zone Layout 1 | . 1 . Fabricator Hacks . | . . . Repair Station Hacks . | . . . Recycling Unit Hacks 1 | . 1 . Retrieve Components 1 | . 1 . Scanalyzer . | . . . Garrison Access Hacks . | . . . Unauthorized Hacks 3 | . 3 . Terminals 2 | . 2 . Botnet 2 | . 2 . Fabricators . | . . . Repair Stations . | . . . Recycling Units 1 | . 1 . Tunnel 1 | . 1 . Scanalyzers . | . . . Garrison Access . | . . . Data Cores Recovered . | . . . Used . | . . . Hacking Detections 3 | . 3 . Full Trace Events 1 | . 1 . Feedback Events . | . . . Feedback Blocked . | . . . Robot Schematics Acquired . | . . . Robots Built . | . . . Authchips . | . . . Time . | . . . Total Robot Build Rating . | . . . Part Schematics Acquired . | . . . Parts Built . | . . . Authchips . | . . . Time . | . . . Total Part Build Rating . | . . . Part Studies Acquired . | . . . Parts Repaired . | . . . Time . | . . . Parts Recycled . | . . . Recycled Matter . | . . . Retrieved Matter . | . . . Retrieved Components 10 | . 10 . Parts Scanalyzed . | . . . Part Schematics Acquired . | . . . Parts Damaged . | . . . Bothacking | -11 -10 -10 ------------ Run | Yrd Mat Min Used RIF Installer . | . . . Robots Hacked . | . . . Non-combat . | . . . Combat . | . . . Robot Hacks Applied . | . . . Relay Couplers Released . | . . . Fabnet Peak Effective % . | . . . Robots Rewired . | . . . Allies Hacked . | . . . Hacks Repelled . | . . . Allies | -11 -10 -10 -------- Run | Yrd Mat Min Total Allies 3 | . . 3 Largest Group 3 | . . 3 Highest-Rated Group 40 | . . 40 Highest-Rated Ally 16 | . . 16 Total Orders . | . . . Ally Attacks 9 | . . 9 Total Damage 50 | . . 50 Kills . | . . . Allies Corrupted . | . . . Allies Melted . | . . . Intel | -11 -10 -10 ------- Run | Yrd Mat Min Active Infowar (turns) 1732 | 34 1120 578 Seismic 1732 | 34 1120 578 Robot Analysis Total . | . . . Derelict Logs Recovered 1 | . . 1 Drone Launches . | . . . Drone Recoveries . | . . . Exploration | -11 -10 -10 ------------- Run | Yrd Mat Min Turns Passed 1819 | 117 1120 582 Spaces Moved 763 | 45 476 242 Core 4 | 4 . . Treads 756 | 40 476 240 Legs 1 | 1 . . Wheels . | . . . Hover . | . . . Flight 2 | . . 2 Fastest Speed 32 | 50 160 32 Average Speed 204 | 149 191 238 Slowest Speed 320 | 160 240 320 Overloaded Moves . | . . . Propulsion Burnouts . | . . . Robots Hopped . | . . . Potential Cave-ins . | . . . Cave-ins Triggered . | . . . Exploration Rate (%) 54 | 3 92 69 Regions Visited 2 Branch Regions 1 Pre-discovered Areas 1 | . 1 . Known Exits Taken . | . . . Unknown Exits Taken 2 | 1 1 . Scrap Searched 1 | . . 1 Spaces Dug . | . . . Terrain Destroyed . | . . . Melee . | . . . Projectile . | . . . AOE . | . . . Terrain Rammed . | . . . Walls Destroyed . | . . . Machines Disabled . | . . . Actions | -11 -10 -10 --------- Run | Yrd Mat Min Total 908 | 69 592 247 Wait 11 | . 11 . Move 761 | 44 475 242 Hop . | . . . Pick Up 30 | 4 26 . Fast Attach 9 | 8 1 . Attach 5 | . 2 3 Detach 1 | 1 . . Swap 7 | 1 6 . Drop 17 | . 15 2 Fire 67 | 11 56 . Melee . | . . . Ram . | . . . Kick . | . . . Crush . | . . . Escape Stasis . | . . . Rewire . | . . . Trap . | . . . Miscellaneous . | . . . Route ------- -11/Scrapyard -10/Materials (discovered 5 exits: [*Mat x3] / [*Min x2]) -10/Mines (discovered 3 exits: [*Mat x2] / [*Exi]) History --------- Turn | Location | Event 34 | -11/Scrapyard | Discovered new exit (range 14) 118 | -11/Scrapyard | Entered Materials 303 | -10/Materials | Build established: Mutant 330 | -10/Materials | Discovered new exit (range 10) 411 | -10/Materials | Discovered new exit (range 3) 450 | -10/Materials | Discovered new exit (range 9) 754 | -10/Materials | Discovered new exit (range 4) 1068 | -10/Materials | Discovered new exit (range 13) 1238 | -10/Materials | Entered Mines 1246 | -10/Mines | Assisted by bots powering up and referring to "LRC-V3" 1332 | -10/Mines | Learned 4 Materials zone layouts 1363 | -10/Mines | Deemed a non-threat by the Exiles lab entrance 1366 | -10/Mines | Discovered new exit (range 5) 1452 | -10/Mines | Discovered new exit (range 15) 1745 | -10/Mines | Discovered new exit (range 6) 1779 | -10/Mines | Assembled infested the area 1798 | -10/Mines | A weapon hastily lodged in a ceiling crevice suddenly fell to the ground 1811 | -10/Mines | Core integrity fell below 50% 1815 | -10/Mines | Core integrity fell below 20% 1820 | -10/Mines | Destroyed by D-53 Grenadier with Mini Grenade Launcher Last Messages --------------- 01745_ EXIT=FOUND 01779_ ALERT: Infestation in the mines, dispatching Demolisher response squad. 01792_ C-45 Heavy ARC bursts open, deploying its payload. 01792_ D-53 Grenadier unfolds itself. 01795_ Trooper 1a destroyed. 01796_ Trooper 1b destroyed. 01798_ A Mak. Hammer has been hastily shoved under some rubble with a note attached: "Who needs nails when you have Unaware?" 01799_ Mercenary 1a destroyed. 01803_ U-05 Engineer lays Concrete. 01810_ Lgt. Treads destroyed. 01814_ Lgt. Ion Engine destroyed. 01816_ Seismic Detector destroyed. 01818_ The unstable cave ceiling collapses. 01818_ U-05 Engineer lays Concrete. 01818_ Dropped Hcp. Storage Unit. 01819_ U-05 Engineer lays Concrete. 01819_ Dropped Particle Cannon. 01820_ U-05 Engineer lays Concrete. Map ----- +----------------------------------------------------+ | #?????## ##?????## #####! #### #???? | | #?????# ##???????#####???# #??## #???? | | #?##### #????????????????# #???# ##???? | | #?# #????????????????# #???# ##????? | | #?# #????????????????# #??# #?????? | | ### ## #????????????????# ##?# #?????? | | ## #????????????????# #?## #????? | | ### ##????????????????### #??## #????? | | ######?# ##???????????????????# #???# #????? | | ???????# #????????????????????# #???## #####????? | | ???????# #???????????????????## #?????###????????? | | ???????# #??????????????????## ##???????????????? | | ???????# #?????????????????## ######??????????? | | ???????# #?????????????????# < #??????##??? | | ???????# #?????????????????# #???### ??? | | ???????? ??????????????????## ### #??? ??? | | ???????? ???????????????????## #?# #??? ??? | | ???????????????????????##????## ##?# #??? """?## | | ??????????????????????## ????####??# #??? """ # | | ??????????????#???????# ??????????# #??# """ | | ??????????????# ??????# ??????????# #?## """ | | ?????????????# ????# ??###?????# ### | | ?????????????# ??## ### #####?# ## | | ????????????### ## ### # | | ?????????? ### #??? | | ??????????a a @ ] ## ###??? | | ???????????????# ## ][] r ## ##????? | | ?????????????????????# =!! r ######? | | ?????????????????????# !!! #? | | ????????????????????## ] ##### ## #? | | ????????????????????# ##???###### #? | | ????????????????????# ##???###### #? | | ???????????????????## d ###????# ##? | | ???????????????????# d ##??????# #### ##?? | | ???????????????????# / ###??????# #?## ##??? | | ???????????????????# #??????# #?# #???? | | ??????????????????# = #?????# #?# ##???? | | ??????????????????# u ##????# #?# ##????? | | ??????????????????# =u #????# #?# ##?????? | | ??????????????????## #????# #?# #??????? | | ???????????????????# #????# #?# #??????? | | ???????????????????## #????# #?# #??????? | | ????????????????????## ###### ### #??????? | | ?????????????????????##### #??????? | | ?????????????????????????## #%##############???? | | ??????????????????????????# ##"#????# #???? | | ??????????????????????????##### ###??# < #???? | | ??????????????????????????????# #??# #???? | | ??????????????????????????????### #??# #???? | | ????????????????????????????????# #### """" #???? | +----------------------------------------------------+ Best States ------------- Heat Dissipation 25 Energy Generation 10 Energy Capacity 250 Matter Stores 300 Matter Capacity 300 Sight Range 16 Terrain Scan Density 10 Evasion (%) 50 Recoil Reduction 2 Item Schematics ----------------- None Robot Schematics ------------------ None Fabricated ------------ Nothing Repaired ---------- Nothing Studied --------- None Alien Tech Used ----------------- None Achievements -------------- None Challenges ------------ None Game ------ Seed LauncherDeuteriumMapper Manual? 0 Play Time 00:14:36 Cumulative 142.4 hours Start 2026.09.05 @ 16:51:43 End 2026.09.05 @ 17:07:56 Sessions 1 Manual Loads 0 Difficulty Rogue Special Mode None Game No. 124 Rogue 122 Adventurer 2 Explorer 0 Win Type - Total 0 Types 0/0/0/0/0/0/0/0/0/0 Lore% 59 Gallery% 50 Achievement% 41 Wizard Run 0 Options --------- Layout 0 ASCII 0 Keyboard 0 Movement Mouse Keybinds 0 Fullscreen 2 Font 24/Smallcaps Map View 76x50 Zoom Use 0% Tactical HUD 1 Map Filters NONE Filters NONE Steam 1 RUN: ee89dd4f-c93b-4815-8e2d-bc74fbe34caa